Cogmind - Beta 16.1 @@@ ROGUE MODE // 2026.04.10 @ 19:07:36 Player: Unmode Result: Destroyed by E5-JMX(R) with Subdweller Machine Gun Performance ------------- Evolutions (0) 0 Regions Visited (3) 600 Robots Destroyed (38) 190 Value Destroyed (590) 590 Prototype IDs (2) 40 Alien Tech Used (0) 0 Bonus (0) 0 TOTAL SCORE: 1420 Bonus ------- None Cogmind --------- Core Integrity 0/250 Matter 181/300 Energy 60/100 System Corruption 9% Temperature Cool (0) Movement Rolling (175) Ox5 Location -10/Subcaves Parts ------- > --- POWER (1) -------- (None) > --- PROPULSION (2) --- Compact Wheel > --- UTILITY (2) ------ Huge Storage Unit Structural Scanner > --- WEAPON (2) ------- Light Assault Rifle Light Assault Rifle > --- INVENTORY (25) --- Light Nuclear Core Light Treads Light Treads Wheel Wheel Wheel Wheel Heat Sink Small Storage Unit Large Matter Pod (150) Structural Scanner Advanced Visual Processing Unit Improved Terrain Scanner Improved Power Shielding Thief Drone Bay Assault Rifle Assault Rifle Light Assault Rifle Light Assault Rifle High-powered Shotgun Light Cannon Flak Cannon Mining Laser Hammer Peak State ------------ > --- POWER ------------ Light Nuclear Core > --- PROPULSION ------- Compact Wheel Compact Wheel > --- UTILITY ---------- Huge Storage Unit Structural Scanner > --- WEAPON ----------- High-powered Shotgun Flak Cannon > --- INVENTORY -------- Light Nuclear Core Light Treads Light Treads Wheel Wheel Wheel Wheel Heat Sink Small Storage Unit Large Matter Pod Structural Scanner Advanced Visual Processing Unit Improved Terrain Scanner Improved Power Shielding Thief Drone Bay Assault Rifle Assault Rifle Light Assault Rifle Light Assault Rifle Light Assault Rifle Light Assault Rifle Light Cannon Mining Laser Hammer [Rating: 16] Favorites ----------- Power Light Nuclear Core Engine Ion Engine Power Core Light Nuclear Core Propulsion Compact Wheel Treads Light Treads Wheel Compact Wheel Utility Huge Storage Unit Device Improved Terrain Scanner Storage Huge Storage Unit Weapon Assault Rifle Energy Gun EM Pulse Gun Ballistic Gun Assault Rifle Ballistic Cannon Light Cannon Special Weapon Mining Laser Impact Weapon Hammer Build | -11 -10 -10 -10 ------- Run | Yrd Mat Min Sub Slots Evolved . | . . . . Power . | . . . . Propulsion . | . . . . Utility . | . . . . Weapon . | . . . . Parts Attached 30 | 8 10 9 3 Power 4 | 1 2 1 . Engine 3 | 1 2 . . Core 1 | . . 1 . Reactor . | . . . . Propulsion 7 | 2 3 2 . Treads 2 | 1 1 . . Leg . | . . . . Wheel 5 | 1 2 2 . Hover . | . . . . Flight . | . . . . Utility 6 | 2 2 2 . Device 4 | 1 1 2 . Storage 2 | 1 1 . . Processor . | . . . . Hackware . | . . . . Protection . | . . . . Artifact . | . . . . Weapon 13 | 3 3 4 3 Energy Gun 1 | 1 . . . Energy Cannon . | . . . . Ballistic Gun 7 | 2 1 2 2 Ballistic Cannon 2 | . 1 . 1 Launcher . | . . . . Special Weapon 2 | . . 2 . Impact Weapon 1 | . 1 . . Slashing Weapon . | . . . . Piercing Weapon . | . . . . Special Melee Weapon . | . . . . Unidentified Prototypes . | . . . . Parts Lost 7 | . 1 4 2 Power 1 | . . . 1 Propulsion 4 | . 1 2 1 Utility 1 | . . 1 . Weapon 1 | . . 1 . Highest Loss Streak 4 | . 1 4 2 To Critical Strikes . | . . . . Average Backups 15 | 2 9 19 24 Power 1 | . . 2 1 Propulsion 3 | 1 1 3 6 Utility 4 | . 2 5 8 Weapon 6 | . 4 7 9 Tool/Special . | . . . . Unused Backups 13 | . 1 . 12 Power 2 | . 1 . 1 Propulsion 3 | . . . 3 Utility 6 | . . . 6 Weapon 2 | . . . 2 Tool/Special . | . . . . Average Slot Usage (%) 96 | . 99 94 92 Engine 7 | . 14 3 . Core 6 | . . 10 12 Treads 3 | . 7 . . Wheel 24 | . 20 27 25 Device 8 | . 6 9 14 Storage 17 | . 21 14 14 Ballistic Gun 20 | . 21 19 18 Ballistic Cannon 5 | . 5 6 2 Impact Weapon 1 | . 1 . 3 Peak Build Rating 16 | 9 10 13 16 Average Rating 10 | 5 8 11 12 On Entrance 7 | . 9 8 13 Avg Prop Armor Cover (%) 11 | 11 11 . . Naked Turns . | . . . . Heaviest Build 95 | 13 95 91 90 Greatest Support 32 | 10 26 32 32 Greatest Overweight (x) 5 | 2 5 3 5 Average Overweight (x) 2 | . 2 2 2 Largest Inventory Capacity 25 | 8 25 25 25 Average Capacity 22 | 7 20 25 25 Most Carried 25 | 4 15 25 25 Average Carried 15 | 2 9 19 24 Final Capacity 25 | 8 25 25 25 Final Carried 25 | 4 15 25 24 Class Distribution -------------------- 51% | Scavenger-Mutant 48% | Mutant Dominant Class ---------------- Mutant | -10/Materials Scavenger-Mutant | -10/Mines Mutant | -10/Subcaves Resources | -11 -10 -10 -10 ----------- Run | Yrd Mat Min Sub Matter Collected 1286 | 210 697 352 27 Remotely . | . . . . Salvage Created 923 | 23 589 284 27 Parts 64 | 3 36 24 1 Haulers Intercepted . | . . . . Recyclers Shooed 2 | . 1 1 . Parts Field Recycled . | . . . . Retrieved Matter . | . . . . Parts Self-Destructed . | . . . . Prevented . | . . . . Parts Restored . | . . . . Kills | -11 -10 -10 -10 ------- Run | Yrd Mat Min Sub Combat Hostiles Destroyed 19 | . 12 5 2 Guns 12 | . 8 3 1 Cannons 7 | . 4 2 1 Classes Destroyed 8 | 1 6 . 1 Worker 5 | . 3 2 . Builder 5 | . 3 2 . Tunneler 5 | 2 1 2 . Recycler 3 | . 2 1 . Watcher 1 | . 1 . . Swarmer 9 | . 6 3 . Grunt 8 | . 6 2 . Subdweller 2 | . . . 2 Best Kill Streak 5 | 1 5 3 2 Combat Bots Only 4 | . 4 3 2 Max Kills in Single Turn 2 | 1 2 1 1 Gunslinging . | . . . . Exploded . | . . . . Melee . | . . . . Uniques/NPCs Destroyed . | . . . . Combat | -11 -10 -10 -10 -------- Run | Yrd Mat Min Sub Hostile Shots Fired 82 | . 56 11 15 Missed 26 | . 21 2 3 Hits 56 | . 35 9 12 Projectile 56 | . 35 9 12 AOE 2 | . . . 2 Damage Taken 1064 | . 392 325 347 Core 252 | . 75 30 147 Absorbed by Shields . | . . . . Core Remaining (%) 100 | 100 . . . Volleys Fired 119 | 4 62 43 10 Largest 2 | 2 2 2 2 Hottest 120 | 40 50 120 62 Shots Fired 227 | 8 124 76 19 Gun 182 | 8 102 60 12 Cannon 35 | . 22 6 7 Launcher . | . . . . Special 10 | . . 10 . Kinetic 217 | 8 124 66 19 Thermal 10 | . . 10 . Explosive . | . . . . Electromagnetic . | . . . . Robot Hit Streak 13 | 6 9 13 3 Robot Miss Streak 5 | . 4 5 4 Penetration Max . | . . . . Secondary Targets 2 | . 2 . . Max Gunslinging Chain 1 | . 1 . . Shots Hit Robots 135 | 6 73 41 15 Core Hits 59 | 2 31 20 6 Critical Kills . | . . . . Critical Parts Destroyed 1 | . 1 . . Critical Strikes 3 | . 1 2 . Destroy 1 | . 1 . . Blast 2 | . . 2 . Melee Attacks 13 | . 6 3 4 Impact 13 | . 6 3 4 Slashing . | . . . . Piercing . | . . . . Sneak Attacks 1 | . 1 . . Combat Hostiles . | . . . . Follow-up Attacks . | . . . . Damage Inflicted 1717 | 75 1004 447 191 Guns 1263 | 75 724 344 120 Cannons 394 | . 220 103 71 Explosions . | . . . . Melee 60 | . 60 . . Ramming . | . . . . Kinetic 1657 | 75 944 447 191 Thermal . | . . . . Explosive . | . . . . Electromagnetic . | . . . . Impact 60 | . 60 . . Slashing . | . . . . Piercing . | . . . . Highest Corruption 9 | . . 9 9 Average Corruption 9 | . . 9 9 Corruption Purged . | . . . . Corruption Blocked . | . . . . Effects 39 | . . 31 8 Message Errors 8 | . . 6 2 Matter Fused 11 | . . 9 2 Heat Flow Errors 5 | . . 4 1 Energy Discharges 2 | . . . 2 Data Loss (minor) 10 | . . 10 . Data Loss (major) 1 | . . 1 . Weapon Failures 2 | . . 1 1 Overload Shots . | . . . . Overflow Damage 40 | . 40 . . Projectiles . | . . . . Explosions . | . . . . Melee 40 | . 40 . . Knockbacks 4 | . 2 1 1 Impact 1 | . 1 . . Kinetic 3 | . 1 1 1 Secondary . | . . . . Self-Inflicted Damage . | . . . . Shots . | . . . . Rammed . | . . . . Targets Rammed . | . . . . Kicked . | . . . . Crushed . | . . . . Highest Temperature 277 | . 11 277 173 Average Temperature 52 | . 3 58 97 Received Heat Transfer 204 | . 177 27 . Siege Activations . | . . . . Martial Activations . | . . . . Shielding Activations . | . . . . Robots Disrupted . | . . . . Combat Hostiles . | . . . . Robots Corrupted 1 | . 1 . . Combat Hostiles . | . . . . Parts Fried 1 | . 1 . . Impact Corruptions 2 | . 2 . . Robots Melted . | . . . . Combat Hostiles . | . . . . Parts Melted . | . . . . Heat Transferred . | . . . . Parts Sabotaged . | . . . . Parts Stolen . | . . . . Parts Stripped . | . . . . Power Chain Reactions . | . . . . Alert | -11 -10 -10 -10 ------- Run | Yrd Mat Min Sub Maximum Alert Level . | . . . . Low Security (%) 100 | 100 100 100 . Level 1 . | . . . . Level 2 . | . . . . Level 3 . | . . . . Level 4 . | . . . . Level 5 . | . . . . High Security . | . . . . Max Security . | . . . . Peak Influence 181 | 5 181 64 . Initial 3 | . 3 2 . Average 42 | 1 86 7 . Influence Increases 626 | 10 453 163 . Destroy 0b10 Robot/C 340 | . 240 100 . Destroy 0b10 Robot/NC 95 | 10 50 35 . Destroy Leader 72 | . 52 20 . Successful Hack 17 | . 17 . . Disable Machine 15 | . 15 . . Destroy Structure 12 | . 4 8 . Lose Combat Pursuer 75 | . 75 . . Influence Decreases 626 | 5 451 138 32 Entered New Map 24 | . 2 5 17 Time Decay 590 | 5 439 131 15 Lost Part 12 | . 10 2 . Squads Dispatched 2 | . 1 1 . Investigation 1 | . . 1 . Extermination . | . . . . Reinforcement 1 | . 1 . . Assault . | . . . . Garrison . | . . . . Intercept . | . . . . Searches Triggered . | . . . . Construction Impeded . | . . . . Haulers Reinforced . | . . . . Active Scanning Responses . | . . . . Cargo Convoy Interrupts . | . . . . Stealth | -11 -10 -10 -10 --------- Run | Yrd Mat Min Sub Distress Signals 1 | . . 1 . Communications Jammed . | . . . . Distress Signals . | . . . . Times Spotted 32 | . 24 5 3 Peak Tracking Total 5 | . 5 3 2 Tactical Retreats 5 | . 5 . . Traps | -11 -10 -10 -10 ------- Run | Yrd Mat Min Sub Traps Triggered . | . . . . Indirectly . | . . . . Trap Hack Attempts . | . . . . Triggered . | . . . . Disarmed . | . . . . Reprogrammed . | . . . . Reused . | . . . . Traps Extracted . | . . . . Installed . | . . . . Triggered . | . . . . Machines | -11 -10 -10 -10 ---------- Run | Yrd Mat Min Sub Machines Disabled 1 | . 1 . . Max in Single Turn 1 | . 1 . . Machines Repaired . | . . . . Machines Dismantled . | . . . . Machines Sabotaged . | . . . . Overloaded Fab Kills . | . . . . Hacking | -11 -10 -10 -10 --------- Run | Yrd Mat Min Sub Machines Accessed 8 | . 6 2 . Terminals 6 | . 6 . . Fabricators . | . . . . Repair Stations . | . . . . Recycling Units . | . . . . Scanalyzers . | . . . . Garrison Access . | . . . . Total Hacks 15 | . 13 2 . Successful 7 | . 5 2 . Failed 8 | . 8 . . Catastrophic 2 | . 2 . . Database Lockouts . | . . . . Manual 4 | . 4 . . Terminals 13 | . 13 . . Fabricators . | . . . . Repair Stations . | . . . . Recycling Units . | . . . . Scanalyzers . | . . . . Garrison Access . | . . . . Terminal Hacks 7 | . 5 2 . Part Schematic 1 | . 1 . . Prototype ID Bank 1 | . 1 . . Open Door 2 | . . 2 . Branch Access Points 1 | . 1 . . Locate Traps 1 | . 1 . . Transport Status 1 | . 1 . . Fabricator Hacks . | . . . . Repair Station Hacks . | . . . . Recycling Unit Hacks . | . . . . Scanalyzer . | . . . . Garrison Access Hacks . | . . . . Unauthorized Hacks . | . . . . Terminals . | . . . . Fabricators . | . . . . Repair Stations . | . . . . Recycling Units . | . . . . Scanalyzers . | . . . . Garrison Access . | . . . . Data Cores Recovered . | . . . . Used . | . . . . Hacking Detections 5 | . 5 . . Full Trace Events . | . . . . Feedback Events . | . . . . Feedback Blocked . | . . . . Robot Schematics Acquired . | . . . . Robots Built . | . . . . Authchips . | . . . . Time . | . . . . Total Robot Build Rating . | . . . . Part Schematics Acquired 1 | . 1 . . Parts Built . | . . . . Authchips . | . . . . Time . | . . . . Total Part Build Rating . | . . . . Part Studies Acquired . | . . . . Parts Repaired . | . . . . Time . | . . . . Parts Recycled . | . . . . Recycled Matter . | . . . . Retrieved Matter . | . . . . Retrieved Components . | . . . . Parts Scanalyzed . | . . . . Part Schematics Acquired . | . . . . Parts Damaged . | . . . . Bothacking | -11 -10 -10 -10 ------------ Run | Yrd Mat Min Sub Used RIF Installer . | . . . . Robots Hacked . | . . . . Non-combat . | . . . . Combat . | . . . . Robot Hacks Applied . | . . . . Relay Couplers Released . | . . . . Fabnet Peak Effective % . | . . . . Robots Rewired . | . . . . Allies Hacked . | . . . . Hacks Repelled . | . . . . Allies | -11 -10 -10 -10 -------- Run | Yrd Mat Min Sub Total Allies . | . . . . Largest Group . | . . . . Highest-Rated Group . | . . . . Highest-Rated Ally . | . . . . Total Orders . | . . . . Ally Attacks . | . . . . Total Damage . | . . . . Kills . | . . . . Allies Corrupted . | . . . . Allies Melted . | . . . . Intel | -11 -10 -10 -10 ------- Run | Yrd Mat Min Sub Active Infowar (turns) 1220 | 3 476 503 238 Terrain 692 | 3 476 213 . Structural 528 | . . 290 238 Robot Analysis Total . | . . . . Derelict Logs Recovered 1 | . . 1 . Drone Launches . | . . . . Drone Recoveries . | . . . . Exploration | -11 -10 -10 -10 ------------- Run | Yrd Mat Min Sub Turns Passed 2697 | 70 1105 1284 238 Spaces Moved 1606 | 47 623 793 143 Core 6 | 6 . . . Treads . | . . . . Legs . | . . . . Wheels 1600 | 41 623 793 143 Hover . | . . . . Flight . | . . . . Fastest Speed 50 | 50 95 130 130 Average Speed 130 | 91 132 130 132 Slowest Speed 175 | 150 175 135 175 Overloaded Moves . | . . . . Propulsion Burnouts . | . . . . Robots Hopped . | . . . . Potential Cave-ins . | . . . . Cave-ins Triggered 1 | . . 1 . Exploration Rate (%) 49 | 3 84 95 14 Regions Visited 3 Branch Regions 2 Pre-discovered Areas 2 | . . 2 . Known Exits Taken 1 | . 1 . . Unknown Exits Taken 2 | 1 . 1 . Scrap Searched 1 | . . 1 . Spaces Dug 15 | . 3 10 2 Terrain Destroyed 16 | . 3 11 2 Melee 6 | . 3 1 2 Projectile 10 | . . 10 . AOE . | . . . . Terrain Rammed . | . . . . Walls Destroyed . | . . . . Machines Disabled . | . . . . Actions | -11 -10 -10 -10 --------- Run | Yrd Mat Min Sub Total 1947 | 62 774 946 165 Wait 122 | . 47 75 . Move 1603 | 46 622 792 143 Hop . | . . . . Pick Up 33 | 3 14 16 . Fast Attach 11 | 8 2 1 . Attach 5 | . 1 3 1 Detach 3 | 1 1 . 1 Swap 25 | . 11 9 5 Drop 13 | . 8 4 1 Fire 119 | 4 62 43 10 Melee 13 | . 6 3 4 Ram . | . . . . Kick . | . . . . Crush . | . . . . Escape Stasis . | . . . . Rewire . | . . . . Trap . | . . . . Miscellaneous . | . . . . Route ------- -11/Scrapyard -10/Materials (discovered 3 exits: [*Mat] / *Min x2) -10/Mines (discovered 3 exits: [*Mat x2] / [*Sub]) -10/Subcaves History --------- Turn | Location | Event 27 | -11/Scrapyard | Discovered new exit (range 14) 71 | -11/Scrapyard | Entered Materials 158 | -10/Materials | Identified exit to Mines 343 | -10/Materials | Build established: Mutant 442 | -10/Materials | Discovered new exit (range 4) 1176 | -10/Materials | Entered Mines 1216 | -10/Mines | Met a Derelict bent on vengeance 1389 | -10/Mines | Crushed by falling debris 1420 | -10/Mines | Lost 4 parts (2n1u1w) 1423 | -10/Mines | Learned location of Storage (-9) 1483 | -10/Mines | Build established: Scavenger-Mutant 1527 | -10/Mines | Discovered new exit (range 5) 1607 | -10/Mines | Met a Derelict shopkeep closing up shop 1826 | -10/Mines | Discovered new exit (range 7) 1840 | -10/Mines | Found the Drone Emporium 1846 | -10/Mines | Found Prototype Device 2334 | -10/Mines | Discovered new exit (range 12) 2460 | -10/Mines | Entered Subcaves 2461 | -10/Subcaves | Approached by a straggling Scientist 2611 | -10/Subcaves | A swath of the cavern ceiling suddenly collapsed 2661 | -10/Subcaves | Core integrity fell below 50% 2695 | -10/Subcaves | Core integrity fell below 20% 2698 | -10/Subcaves | Destroyed by E5-JMX(R) with Subdweller Machine Gun Last Messages --------------- 02511_ O2-03C(u) builds Twisted Machinery. 02526_ DS |RDIJ VAR